bitfinex/quotes_BTCUSD_20260125
["timestamp","ask_amount","ask_price","bid_price","bid_amount"]
[1769380211052,0.01158184,86342.0,86326.0,0.17285767]
[1769380211283,0.18912054,86344.0,86331.0,0.01158332]
[1769380211457,0.18912054,86349.0,86332.0,1.0554819]
[1769380211888,0.20070145,86349.0,86331.0,1.22833957]
[1769380212196,0.01158104,86348.0,86331.0,1.22833957]
[1769380212499,0.01158117,86347.0,86331.0,1.22833957]
[1769380212707,0.01158158,86344.0,86331.0,1.22833957]
[1769380212904,0.01158131,86346.0,86331.0,1.22833957]
[1769380212905,0.01158131,86346.0,86331.0,0.17285767]
[1769380213040,0.01158131,86346.0,86331.0,1.22833957]
[1769380213911,0.01158117,86347.0,86333.0,1.0554819]
[1769380214271,0.01158117,86347.0,86327.0,0.01158386]
[1769380214272,0.01158117,86347.0,86335.0,1.0554819]
[1769380215086,0.01158131,86346.0,86335.0,1.0554819]
[1769380215698,0.01158117,86347.0,86335.0,1.0554819]
[1769380216109,0.01158131,86346.0,86335.0,1.0554819]
[1769380217049,0.01158144,86345.0,86335.0,1.0554819]
[1769380217422,0.01158131,86346.0,86335.0,1.0554819]
[1769380217626,0.18912054,86350.0,86335.0,1.0554819]
[1769380218042,0.18912054,86350.0,86334.0,0.17307883]
[1769380218043,0.18912054,86350.0,86338.0,0.01158238]
[1769380218251,0.0003144,86356.0,86338.0,0.01158238]
[1769380218252,0.0003144,86356.0,86340.0,0.35189211]
[1769380218473,0.01189437,86356.0,86340.0,0.35189211]
[1769380218680,0.1789589,86356.0,86340.0,0.35189211]
[1769380219103,0.16737893,86356.0,86341.0,1.11686137]
[1769380219326,0.0003144,86356.0,86341.0,1.11686137]
[1769380219539,0.0003144,86356.0,86344.0,0.17307883]
[1769380219754,1.13151983,86365.0,86340.0,0.36347422]
[1769380219755,0.01157809,86370.0,86351.0,1.11686137]
[1769380219962,0.01157782,86372.0,86356.0,1.11686137]
[1769380220171,0.01157796,86371.0,86356.0,1.11686137]
[1769380220377,0.01157809,86370.0,86356.0,1.11686137]
[1769380220595,0.03816139,86373.0,86356.0,1.11686137]
[1769380220815,0.01157809,86370.0,86356.0,1.2899402]
[1769380221032,0.02672546,86373.0,86356.0,1.11686137]
[1769380221258,0.03830315,86373.0,86358.0,1.11686137]
[1769380221464,0.03830315,86373.0,86358.0,1.2899402]
[1769380221637,0.01157809,86370.0,86358.0,1.2899402]
[1769380221965,0.01171945,86373.0,86358.0,1.2899402]
[1769380222837,0.01171945,86373.0,86354.0,0.01158023]
[1769380222838,0.00014176,86373.0,86361.0,1.11686137]
[1769380223045,0.00014176,86373.0,86362.0,0.1729239]
[1769380224894,0.01157809,86370.0,86362.0,0.1729239]
[1769380225082,0.01157809,86370.0,86357.0,1.11686137]
[1769380225239,0.01157809,86370.0,86358.0,1.2899402]
[1769380225451,0.01157822,86369.0,86358.0,1.2899402]
[1769380225785,0.01157809,86370.0,86358.0,1.2899402]
[1769380226246,0.01157822,86369.0,86358.0,1.2899402]
[1769380227490,0.01157809,86370.0,86358.0,1.2899402]
[1769380227693,0.01157796,86371.0,86358.0,1.11686137]
[1769380227919,0.01157809,86370.0,86359.0,0.17307883]
[1769380228160,0.01157796,86371.0,86360.0,0.17307883]
[1769380228322,0.01157822,86369.0,86361.0,1.11686137]
[1769380228551,0.01157796,86371.0,86361.0,1.11686137]
[1769380229309,0.01157809,86370.0,86361.0,1.11686137]
[1769380229511,0.01157796,86371.0,86361.0,1.11686137]
[1769380229714,0.01157782,86372.0,86361.0,1.11670645]
[1769380229922,0.00014176,86373.0,86361.0,1.11655154]
[1769380230119,0.00014176,86373.0,86361.0,1.11639664]
[1769380230369,0.01171945,86373.0,86361.0,1.11624175]
[1769380230542,0.01171945,86373.0,86361.0,1.11608686]
[1769380230747,0.00014176,86373.0,86361.0,1.11608686]
[1769380231290,0.00014176,86373.0,86361.0,1.11593195]
[1769380232172,0.00114176,86373.0,86361.0,1.11593195]
[1769380232675,0.00014176,86373.0,86361.0,1.11593195]
[1769380232887,0.01171945,86373.0,86361.0,1.11593195]
[1769380233729,0.01171945,86373.0,86361.0,1.2892398]
[1769380233936,0.00014176,86373.0,86361.0,1.2892398]
[1769380234141,0.01157796,86371.0,86361.0,0.17330785]
[1769380234765,0.01157809,86370.0,86359.0,1.09627768]
[1769380235186,0.01157822,86369.0,86359.0,1.09627768]
[1769380235411,0.01157809,86370.0,86334.0,1.09627768]
[1769380235412,0.0115805,86352.0,86334.0,1.09627768]
[1769380235626,0.01,86359.0,86330.0,0.0002864]
[1769380235627,0.01158104,86348.0,86330.0,0.0002864]
[1769380235838,0.01158158,86344.0,86331.0,0.17330785]
[1769380236043,0.01158158,86344.0,86331.0,1.26958553]
[1769380236273,0.01158104,86348.0,86331.0,1.09627768]
[1769380236481,0.01158077,86350.0,86333.0,1.09627768]
[1769380236690,0.01158131,86346.0,86333.0,1.26958553]
[1769380236909,0.01158144,86345.0,86333.0,1.26958553]
[1769380237122,0.01158158,86344.0,86333.0,1.26958553]
[1769380237328,0.01158144,86345.0,86333.0,1.26958553]
[1769380237562,0.01158158,86344.0,86333.0,1.26958553]
[1769380237777,0.01158171,86343.0,86333.0,0.17330785]
[1769380237989,0.01158184,86342.0,86333.0,0.17330785]
[1769380238224,0.01158158,86344.0,86330.0,0.35218041]
[1769380238441,0.01158171,86343.0,86330.0,0.35218041]
[1769380238644,0.01158158,86344.0,86331.0,1.09627768]
[1769380238871,0.01158171,86343.0,86331.0,1.26958553]
[1769380239080,0.00829069,86343.0,86331.0,1.26958553]
[1769380239294,0.00829069,86343.0,86330.0,0.0002883]
[1769380239519,0.01158251,86337.0,86330.0,0.0002883]
[1769380240626,0.05790994,86341.0,86330.0,0.0002883]
[1769380240627,0.35189211,86340.0,86330.0,0.0002883]
[1769380240832,0.01158292,86334.0,86330.0,0.0002883]
[1769380241042,0.16540718,86340.0,86330.0,0.00014415]
[1769380241491,0.35189211,86350.0,86330.0,0.00014415]
[1769380241492,0.01158117,86347.0,86330.0,0.35203626]
[1769380241700,0.01158131,86346.0,86331.0,1.09627768]
[1769380242121,0.01158158,86344.0,86331.0,1.09627768]
[1769380242328,0.01158144,86345.0,86331.0,1.09627768]
[1769380243185,0.01158184,86342.0,86330.0,0.35203626]
[1769380243367,0.01158184,86342.0,86330.0,0.00014415]
[1769380243368,0.01158211,86340.0,86330.0,0.00014415]
[1769380243806,0.01158225,86339.0,86330.0,0.00014415]
[1769380244432,0.01158198,86341.0,86330.0,0.00014415]
[1769380244630,0.01158211,86340.0,86330.0,0.00014415]
[1769380245040,0.01158225,86339.0,86330.0,0.00014415]
[1769380245664,0.01158238,86338.0,86330.0,0.00014415]
[1769380246271,0.01158265,86336.0,86330.0,0.00014415]
[1769380246919,0.01158278,86335.0,86330.0,0.00014415]
[1769380247330,0.01158278,86335.0,86321.0,0.17330785]
[1769380247331,0.01158292,86334.0,86321.0,0.17330785]
[1769380248157,0.16540718,86337.0,86321.0,0.17330785]
[1769380248580,0.17698969,86337.0,86321.0,0.17330785]
[1769380248789,0.16540718,86337.0,86322.0,0.01158453]
[1769380249017,0.16540718,86337.0,86322.0,1.26958553]
[1769380249226,0.01158211,86340.0,86322.0,1.26958553]
[1769380249799,0.01158198,86341.0,86322.0,1.26958553]
[1769380250022,0.01158198,86341.0,86323.0,1.10786207]
[1769380250164,0.01158198,86341.0,86323.0,1.09627768]
[1769380250372,0.01158211,86340.0,86323.0,1.09627768]
[1769380251092,0.01158198,86341.0,86323.0,1.09627768]
[1769380251529,0.01158211,86340.0,86323.0,1.09627768]
[1769380251871,0.01158198,86341.0,86323.0,1.09627768]
[1769380252095,0.17364851,86342.0,86323.0,1.09627768]
[1769380252299,0.16540718,86342.0,86325.0,0.17330785]
[1769380252710,0.17698902,86342.0,86325.0,1.26958553]
[1769380253290,0.00014173,86347.0,86331.0,0.17330785]
[1769380253491,0.00014173,86347.0,86334.0,1.09627768]
[1769380253696,0.00014173,86347.0,86337.0,1.09627768]
[1769380254066,0.00014173,86347.0,86338.0,0.17330785]
[1769380254440,0.00014173,86347.0,86331.0,1.26958553]
[1769380254647,0.01158131,86346.0,86331.0,1.26958553]
[1769380255819,0.01158158,86344.0,86331.0,0.17330785]
[1769380256157,0.01158171,86343.0,86331.0,0.17330785]
[1769380256522,0.01158158,86344.0,86331.0,0.17330785]
[1769380256674,0.01158158,86344.0,86332.0,1.09627768]
[1769380256872,0.0117229,86347.0,86332.0,1.09627768]
[1769380257276,0.01158131,86346.0,86332.0,1.09627768]
[1769380257478,0.0117229,86347.0,86332.0,1.09627768]
[1769380257753,0.00014173,86347.0,86332.0,1.10786087]
[1769380257880,0.0115801,86355.0,86339.0,1.26958553]
[1769380258094,0.01157997,86356.0,86341.0,1.09627768]
[1769380258430,0.01157997,86356.0,86341.0,1.26957234]
[1769380258431,0.01158023,86354.0,86341.0,1.26957234]
[1769380258856,0.0115801,86355.0,86341.0,1.26957234]
[1769380259059,0.01158023,86354.0,86341.0,1.26957234]
[1769380259260,0.01158037,86353.0,86341.0,1.26957234]
[1769380259469,0.01158064,86351.0,86341.0,1.26957234]
[1769380259805,0.01157997,86356.0,86341.0,1.26957234]
[1769380260017,0.0115801,86355.0,86341.0,1.26957234]
[1769380260210,0.01158023,86354.0,86341.0,1.26957234]
[1769380260798,0.01158037,86353.0,86341.0,1.26957234]
[1769380261038,0.17365004,86358.0,86341.0,1.26957234]
[1769380261240,0.23156418,86370.0,86349.0,1.09627768]
[1769380261241,0.01157863,86366.0,86349.0,1.09627768]
[1769380261419,0.17698567,86367.0,86351.0,0.17330785]
[1769380261420,0.16540718,86367.0,86351.0,0.17330785]
[1769380261625,0.17698567,86367.0,86351.0,1.26958553]
[1769380262077,0.0002533,86368.0,86356.0,0.17330785]
[1769380262262,0.0002533,86368.0,86354.0,1.09627768]
[1769380262470,0.0002533,86368.0,86348.0,0.35161208]
[1769380262471,0.01157849,86367.0,86352.0,0.17330785]
[1769380262629,0.02007452,86368.0,86352.0,0.17330785]
[1769380262856,0.00849616,86368.0,86352.0,0.18488835]
[1769380263025,0.00836085,86368.0,86353.0,0.15331621]
[1769380263227,0.00011799,86368.0,86353.0,0.15331621]
[1769380263429,0.00011799,86368.0,86354.0,1.27182035]
[1769380264885,0.16222286,86382.0,86363.0,0.15331621]
[1769380265095,0.16222286,86382.0,86365.0,1.27182035]
[1769380265495,0.17055593,86382.0,86365.0,1.27182035]
[1769380265699,0.18213241,86382.0,86365.0,1.27182035]
[1769380265906,0.01990968,86381.0,86365.0,1.27182035]
[1769380266102,0.17055593,86381.0,86365.0,1.27182035]
[1769380266330,0.18213254,86381.0,86365.0,1.27182035]
[1769380266537,0.00833307,86380.0,86365.0,1.27182035]
[1769380266714,0.00833307,86380.0,86365.0,0.15331621]
[1769380266715,0.01157755,86374.0,86365.0,0.15331621]
[1769380266916,0.01157755,86374.0,86351.0,0.01158064]
[1769380266917,0.01,86365.0,86351.0,0.01158064]
[1769380267116,0.00833307,86369.0,86351.0,0.16489685]
[1769380267389,0.16222286,86370.0,86353.0,0.01158037]
[1769380267713,0.00833307,86372.0,86355.0,0.15331621]
[1769380267887,0.01157782,86372.0,86355.0,1.27182035]
[1769380268094,0.01157769,86373.0,86355.0,1.26682035]
[1769380268299,0.01157755,86374.0,86355.0,1.27840045]
[1769380268540,0.01157769,86373.0,86356.0,1.27182035]
[1769380268921,0.01157755,86374.0,86356.0,1.27182035]
[1769380269480,0.17380028,86375.0,86360.0,0.35161208]
[1769380269481,0.16222286,86375.0,86360.0,0.35161208]
[1769380269707,0.16222286,86375.0,86360.0,0.50492829]
[1769380269884,0.16222286,86375.0,86360.0,0.15331621]
[1769380270282,0.01157769,86373.0,86360.0,0.15331621]
[1769380270482,0.01157742,86375.0,86361.0,1.27182035]
[1769380270638,0.01157728,86376.0,86361.0,1.27182035]
[1769380270989,0.01157702,86378.0,86361.0,1.27182035]
[1769380271274,0.01157715,86377.0,86361.0,1.27182035]
[1769380271682,0.01157702,86378.0,86361.0,1.27182035]
[1769380271932,0.00833307,86379.0,86361.0,1.27182035]
[1769380272136,0.00833307,86379.0,86357.0,0.01157983]
[1769380272137,0.16222286,86381.0,86369.0,0.35161208]
[1769380272280,0.01157648,86382.0,86365.0,0.15331621]
[1769380272488,0.01197635,86383.0,86367.0,0.15331621]
[1769380272744,0.01157661,86381.0,86367.0,0.15331621]
[1769380272936,0.00833307,86381.0,86367.0,0.15331621]
[1769380273324,0.00014171,86381.0,86367.0,0.15331621]
[1769380273518,0.00014171,86381.0,86367.0,1.27182035]
[1769380274488,0.00014171,86381.0,86367.0,1.27151051]
[1769380275081,0.00014171,86381.0,86367.0,1.11850414]
[1769380275252,0.00014171,86381.0,86367.0,1.27182035]
[1769380275414,0.00014171,86381.0,86367.0,1.11850414]
[1769380275617,0.00014171,86381.0,86368.0,0.14822633]
[1769380275816,0.00014171,86381.0,86370.0,0.35161208]
[1769380276043,0.00014171,86381.0,86370.0,0.49983841]
[1769380276938,0.00014171,86381.0,86370.0,0.14822633]
[1769380277357,0.00014171,86381.0,86374.0,0.01157755]
[1769380277561,0.0004,86383.0,86376.0,1.20572829]
[1769380277812,0.0004,86383.0,86376.0,1.20162233]
[1769380282028,0.0004,86383.0,86378.0,0.14822633]
[1769380282236,0.0004,86383.0,86380.0,1.20572829]
[1769380282455,0.0004,86383.0,86380.0,0.14822633]
[1769380282670,0.0004,86383.0,86380.0,0.14803141]
[1769380282917,0.0004,86383.0,86375.0,1.20572829]
[1769380284284,0.0004,86383.0,86375.0,1.05750196]
[1769380284652,0.0004,86383.0,86376.0,0.14822633]
[1769380285301,0.0004,86383.0,86377.0,1.05750196]
[1769380285485,0.00047106,86383.0,86380.0,0.14822633]
[1769380285948,0.00047106,86383.0,86370.0,0.35161208]
[1769380285949,0.00047106,86383.0,86382.0,1.20572829]
[1769380286368,0.00047106,86383.0,86382.0,0.14822633]
[1769380286580,0.00047106,86383.0,86377.0,1.20572829]
[1769380287026,0.00047106,86383.0,86377.0,1.05750196]
[1769380287237,0.00047106,86383.0,86380.0,0.14822633]
[1769380287450,0.00047106,86383.0,86380.0,1.20572829]
[1769380288551,0.00047106,86383.0,86380.0,0.14822633]
[1769380288993,0.00047106,86383.0,86380.0,1.20572829]
[1769380289673,0.0004,86388.0,86379.0,0.01157688]
[1769380289880,0.05787258,86397.0,86382.0,1.20572829]
[1769380290088,0.01157447,86397.0,86382.0,1.20572829]
[1769380290296,0.0115746,86396.0,86382.0,1.20572829]
[1769380290506,0.01157447,86397.0,86382.0,1.20572829]
[1769380290719,0.057873,86397.0,86382.0,1.20572829]
[1769380290927,0.01157501,86393.0,86382.0,1.20572829]
[1769380291133,0.05787348,86396.0,86382.0,1.20572829]
[1769380291561,0.01157487,86394.0,86382.0,1.20572829]
[1769380291766,0.01157501,86393.0,86382.0,1.20572829]
[1769380291994,0.01157474,86395.0,86382.0,1.20572829]
[1769380292194,0.01157487,86394.0,86382.0,1.20572829]
[1769380292720,0.01157635,86383.0,86371.0,0.14822633]
[1769380292934,0.0694571,86385.0,86371.0,0.14829739]
[1769380292935,0.06945695,86385.0,86371.0,0.14829739]
[1769380293592,0.01157648,86382.0,86371.0,0.14829739]
[1769380293793,0.01157796,86371.0,86357.0,0.14981759]
[1769380294029,0.01157742,86375.0,86360.0,0.35161208]
[1769380294369,0.15804307,86379.0,86360.0,0.35161208]
[1769380294573,0.15804307,86379.0,86360.0,1.57471272]
[1769380294777,0.01157702,86378.0,86360.0,1.57471272]
[1769380295004,0.15804307,86379.0,86362.0,0.01157916]
[1769380295224,0.15804307,86379.0,86364.0,0.01157889]
[1769380295424,0.01157648,86382.0,86364.0,0.14981759]
[1769380295572,0.01157675,86380.0,86364.0,0.14981759]
[1769380295937,0.06945866,86383.0,86364.0,0.14981759]
[1769380296111,0.01157688,86379.0,86364.0,0.14981759]
[1769380296528,0.06945909,86382.0,86364.0,1.22310064]
[1769380296529,0.01157648,86382.0,86364.0,1.22310064]
[1769380296733,0.15804307,86383.0,86364.0,1.22310064]
[1769380296947,0.15804307,86383.0,86364.0,1.23467953]
[1769380297162,0.01157648,86382.0,86364.0,1.23467953]
[1769380297487,0.16961942,86383.0,86364.0,1.23467953]
[1769380297695,0.15804307,86383.0,86364.0,1.23467953]
[1769380297919,0.16961982,86380.0,86364.0,0.14981759]
[1769380298308,0.01157688,86379.0,86364.0,0.14981759]
[1769380298914,0.01157702,86378.0,86364.0,0.14981759]
[1769380299245,0.01157688,86379.0,86364.0,0.14981759]
[1769380299593,0.01157715,86377.0,86364.0,0.14981759]
[1769380299799,0.01157702,86378.0,86364.0,0.14981759]
[1769380300080,0.01607723,86380.0,86364.0,0.14981759]
[1769380300794,0.01157702,86378.0,86364.0,0.14981759]
[1769380300970,0.01157541,86390.0,86380.0,0.14981759]
[1769380301145,0.01157514,86392.0,86380.0,0.14981759]
[1769380301350,0.01157501,86393.0,86380.0,0.14981759]
[1769380302547,0.0004,86400.0,86380.0,0.50142967]
[1769380302734,0.0004,86400.0,86382.0,0.01157648]
[1769380302735,0.11528094,86399.0,86382.0,0.01157648]
[1769380302933,0.01197407,86400.0,86381.0,0.14981759]
[1769380303513,0.0004,86400.0,86381.0,0.1613942]
[1769380303684,0.0004,86400.0,86383.0,0.14981759]
[1769380304054,0.0004,86400.0,86379.0,0.01157688]
[1769380304055,0.0004,86400.0,86392.0,0.01157514]
[1769380304262,0.0004,86400.0,86395.0,0.14981759]
[1769380304461,0.0004,86400.0,86397.0,0.14981759]
[1769380304688,0.0004,86402.0,86398.0,1.07328305]
[1769380304890,0.0004,86402.0,86400.0,0.14981759]
[1769380305110,0.0001919,86411.0,86400.0,0.14981759]
[1769380305468,0.00087226,86408.0,86400.0,0.14981759]
[1769380307753,0.0001919,86411.0,86403.0,1.07328305]
[1769380307972,0.00033349,86411.0,86407.0,1.07328305]
[1769380308170,0.00033349,86411.0,86408.0,0.14981759]
[1769380308385,0.0004,86422.0,86408.0,0.14981759]
[1769380308386,0.5589998,86430.0,86408.0,1.07328305]
[1769380308539,0.5589998,86430.0,86407.0,0.14981759]
[1769380308540,0.01157152,86419.0,86407.0,0.14981759]
[1769380309466,0.01157139,86420.0,86407.0,0.14981759]
[1769380309630,0.01157152,86419.0,86407.0,0.14981759]
[1769380309983,0.01157166,86418.0,86407.0,0.14981759]
[1769380310142,0.01157139,86420.0,86407.0,0.14981759]
[1769380310757,0.01157126,86421.0,86407.0,0.14981759]
[1769380311361,0.00667435,86422.0,86407.0,0.14981759]
[1769380311990,0.01157126,86421.0,86407.0,0.14981759]
[1769380312377,0.01824547,86422.0,86407.0,0.14981759]
[1769380313359,0.00667435,86422.0,86407.0,0.14981759]
[1769380313572,0.01824547,86422.0,86407.0,0.14981759]
[1769380313778,0.01157126,86421.0,86407.0,0.14981759]
[1769380313997,0.01157112,86422.0,86409.0,0.16231842]
[1769380314214,0.01157112,86422.0,86410.0,0.16231842]
[1769380314451,0.01157099,86423.0,86410.0,0.16231842]
[1769380314668,0.01157112,86422.0,86410.0,0.16231842]
[1769380315086,0.01157099,86423.0,86410.0,0.16231842]
[1769380315957,0.06942654,86423.0,86410.0,0.16231842]
[1769380316164,0.01157126,86421.0,86410.0,0.16231842]
[1769380316375,0.01157139,86420.0,86410.0,0.16231842]
[1769380316596,0.01157126,86421.0,86404.0,0.16006986]
[1769380316804,0.01157139,86420.0,86404.0,0.16006986]
[1769380317032,0.01824561,86421.0,86404.0,0.16006986]
[1769380317429,0.00667435,86421.0,86404.0,0.16006986]
[1769380317642,0.01157112,86422.0,86404.0,0.16006986]
[1769380317814,0.00667435,86421.0,86404.0,0.17164339]
[1769380318018,0.00667435,86421.0,86404.0,0.16006986]
[1769380318403,0.00667435,86421.0,86404.0,0.17164339]
[1769380319104,0.00667435,86421.0,86405.0,0.17164326]
[1769380319749,0.00667435,86421.0,86405.0,0.16006986]
[1769380319907,0.00667435,86421.0,86405.0,0.17164326]
[1769380320105,0.01157085,86424.0,86406.0,1.07328305]
[1769380320362,0.01157085,86424.0,86407.0,0.16006986]
[1769380320990,0.00667435,86423.0,86407.0,0.16006986]
[1769380321869,0.06942522,86424.0,86407.0,0.16006986]
[1769380322080,0.00667435,86423.0,86407.0,0.16006986]
[1769380322427,0.00753375,86428.0,86400.0,0.01157407]
[1769380322428,0.0004,86434.0,86414.0,1.07328305]
[1769380322545,0.01196952,86434.0,86421.0,0.1578213]
[1769380322756,0.01196952,86434.0,86422.0,0.04201178]
[1769380322757,0.01156965,86433.0,86422.0,0.04201178]
[1769380323055,0.01157032,86428.0,86414.0,0.00014159]
[1769380323263,0.01157126,86421.0,86414.0,0.00014159]
[1769380323497,0.50944301,86430.0,86401.0,0.16205355]
[1769380323498,0.01157179,86417.0,86401.0,0.16205355]
[1769380323700,0.00014154,86417.0,86407.0,0.3510011]
[1769380323896,0.00014154,86417.0,86401.0,0.16205355]
[1769380324507,0.01157193,86416.0,86402.0,0.16205355]
[1769380324716,0.0080684,86411.0,86391.0,0.16205355]
[1769380324934,0.01157367,86403.0,86387.0,0.0002621]
[1769380325151,0.01964207,86403.0,86387.0,0.0002621]
[1769380325352,0.0080684,86403.0,86387.0,0.0002621]
[1769380325758,0.0080684,86401.0,86387.0,0.0002621]
[1769380325969,0.06944789,86396.0,86387.0,0.0002621]
[1769380326180,0.17001651,86396.0,86387.0,0.0002621]
[1769380326388,0.15844191,86394.0,86387.0,8.164e-05]
[1769380326597,0.00790368,86393.0,86387.0,8.164e-05]
[1769380326799,0.15844191,86391.0,86387.0,8.164e-05]
[1769380327003,0.00790368,86390.0,86387.0,8.164e-05]
[1769380327208,0.00790368,86390.0,86387.0,0.00108164]
[1769380327424,0.05896073,86387.0,86371.0,0.0002621]
[1769380327634,0.00790368,86385.0,86371.0,0.0002621]
[1769380327848,0.01157675,86380.0,86371.0,0.0002621]
[1769380328046,0.00790368,86380.0,86371.0,0.00073436]
[1769380328651,0.01948043,86380.0,86371.0,0.00073436]
[1769380328993,0.01948043,86380.0,86371.0,0.00047226]
[1769380328994,0.01157702,86378.0,86371.0,0.00047226]
[1769380329351,0.01157688,86379.0,86371.0,0.00047226]
[1769380329558,0.01157675,86380.0,86371.0,0.00147226]
[1769380329755,0.0194807,86378.0,86371.0,0.00147226]
[1769380329994,0.2315187,86387.0,86371.0,0.00147226]
[1769380329995,0.01157608,86385.0,86371.0,0.00047226]
[1769380330233,0.01948003,86383.0,86371.0,0.00147226]
[1769380330658,0.01157648,86382.0,86371.0,0.00147226]
[1769380330909,0.01157648,86382.0,86371.0,0.00047226]
[1769380331115,0.01157661,86381.0,86371.0,0.00047226]
[1769380331326,0.01157648,86382.0,86371.0,0.00047226]
[1769380331543,0.01157661,86381.0,86371.0,0.00047226]
[1769380331751,0.01157648,86382.0,86371.0,0.00047226]
[1769380331959,0.01157648,86382.0,86371.0,0.00147226]
[1769380332377,0.01157661,86381.0,86371.0,0.00147226]
[1769380332590,0.01157661,86381.0,86371.0,0.00047226]
[1769380332811,0.01157661,86381.0,86371.0,0.00147226]
[1769380333027,0.00790368,86383.0,86371.0,0.00147226]
[1769380333513,0.00790368,86383.0,86371.0,0.00047226]
[1769380333963,0.15844191,86386.0,86371.0,0.00147226]
[1769380334166,0.16634559,86386.0,86371.0,0.01305022]
[1769380335044,0.16634559,86386.0,86371.0,0.00047226]
[1769380335393,0.16634559,86386.0,86371.0,0.00147226]
[1769380335729,0.16634559,86386.0,86371.0,0.00047226]
[1769380336133,0.16634559,86386.0,86371.0,0.00147226]
[1769380336337,0.16634559,86386.0,86371.0,0.01305022]
[1769380336653,0.16634559,86386.0,86372.0,0.01157782]
[1769380336854,0.16634559,86386.0,86371.0,0.00147226]
[1769380337240,0.16634559,86386.0,86371.0,0.01157796]
[1769380337501,0.00790368,86386.0,86371.0,0.01157796]
[1769380337701,0.00790368,86386.0,86372.0,0.01157782]
[1769380337925,0.00790368,86386.0,86371.0,0.15401516]
[1769380338137,0.00790368,86385.0,86371.0,0.15401516]
[1769380338338,0.01947976,86385.0,86371.0,0.15401516]
[1769380338598,0.00790368,86385.0,86372.0,0.001]
[1769380339024,0.01157621,86384.0,86364.0,0.0003099]
[1769380339231,0.01157621,86384.0,86371.0,0.001]
[1769380339232,0.01157661,86381.0,86371.0,0.001]
[1769380339635,0.01157702,86378.0,86371.0,0.001]
[1769380339801,0.00790368,86379.0,86365.0,0.00014171]
[1769380339964,0.00790368,86379.0,86372.0,0.001]
[1769380340484,0.01157702,86378.0,86372.0,0.001]
[1769380341106,0.01157702,86378.0,86365.0,0.00014171]
[1769380341309,0.23153251,86381.0,86365.0,0.00014171]
[1769380341541,0.01157702,86378.0,86371.0,0.001]
[1769380341909,0.01157702,86378.0,86365.0,0.00014171]
[1769380342288,0.01157702,86378.0,86365.0,0.00114171]
[1769380342489,0.01157648,86382.0,86365.0,0.00114171]
[1769380342490,0.14825294,86385.0,86367.0,0.15401516]
[1769380342694,0.01157621,86384.0,86368.0,0.15401516]
[1769380342894,0.15982902,86385.0,86368.0,0.15401516]
[1769380343116,0.14825294,86385.0,86369.0,1.12579651]
[1769380343452,0.14825294,86385.0,86370.0,0.3510011]
[1769380343631,0.14825294,86385.0,86370.0,0.36257919]
[1769380343834,0.14825294,86385.0,86372.0,0.01157782]
[1769380344035,0.14825294,86385.0,86373.0,0.01157769]
[1769380344403,0.14825294,86385.0,86370.0,0.36257919]
[1769380344404,0.01157353,86404.0,86385.0,1.12596216]
[1769380344609,0.01157367,86403.0,86386.0,0.15401516]
[1769380344840,0.0578942,86399.0,86386.0,0.15401516]
[1769380345402,0.01157434,86398.0,86386.0,0.15401516]
[1769380345802,0.01157447,86397.0,86386.0,0.15158674]
[1769380346042,0.01157501,86393.0,86386.0,0.15158674]
[1769380346304,0.01157541,86390.0,86376.0,0.15401516]
[1769380346513,0.01157554,86389.0,86376.0,0.15401516]
[1769380346674,0.01157554,86389.0,86376.0,0.15175608]
[1769380346863,0.01157554,86389.0,86376.0,0.15160144]
[1769380347282,0.01157541,86390.0,86376.0,0.15160144]
[1769380347507,0.01157554,86389.0,86376.0,0.15144686]
[1769380347709,0.01157501,86393.0,86376.0,0.15144686]
[1769380347986,0.01157514,86392.0,86376.0,0.15144686]
[1769380348189,0.05787338,86396.0,86376.0,0.15144686]
[1769380348190,0.14098911,86398.0,86378.0,0.01157702]
[1769380348427,0.15259721,86397.0,86380.0,0.3510011]
[1769380348602,0.0115746,86396.0,86380.0,0.3510011]
[1769380348926,0.01947842,86395.0,86378.0,0.15401516]
[1769380349123,0.01157487,86394.0,86378.0,0.15401516]
[1769380349496,0.01947842,86395.0,86378.0,0.15401516]
[1769380349687,0.00790368,86395.0,86378.0,0.16559218]
[1769380349827,0.00790368,86395.0,86380.0,0.3510011]
[1769380350647,0.01157487,86394.0,86380.0,0.3510011]
[1769380350850,0.01157501,86393.0,86380.0,0.3510011]
[1769380351745,0.00790368,86395.0,86380.0,0.3510011]
[1769380351930,0.01947842,86395.0,86380.0,0.3510011]
[1769380352798,0.01157501,86393.0,86378.0,0.15401516]
[1769380352975,0.00790368,86391.0,86374.0,0.01157755]
[1769380353176,0.01947895,86391.0,86380.0,0.3510011]
[1769380353374,0.00790368,86391.0,86373.0,0.13882307]
[1769380353834,0.01947895,86391.0,86373.0,0.15040076]
[1769380353999,0.00790368,86391.0,86373.0,0.15040076]
[1769380354201,0.00790368,86391.0,86374.0,0.13882307]
[1769380354400,0.00790368,86391.0,86375.0,0.13882307]
[1769380355345,0.00790368,86391.0,86376.0,0.01157728]
[1769380355541,0.13916015,86393.0,86377.0,1.2820251]
[1769380355979,0.13916015,86393.0,86380.0,0.3510011]
[1769380356318,0.13916015,86393.0,86377.0,0.13882307]
[1769380356319,0.00790368,86392.0,86377.0,0.13882307]
[1769380356521,0.00790368,86381.0,86367.0,0.13882307]
[1769380356825,0.00790368,86381.0,86365.0,0.00014171]
[1769380356826,0.00983434,86377.0,86365.0,0.00014171]
[1769380357023,0.00790368,86381.0,86365.0,0.00014171]
[1769380357425,0.1312538,86383.0,86375.0,0.001]
[1769380357829,0.1312538,86383.0,86365.0,0.13896478]
[1769380358043,0.01157715,86377.0,86365.0,0.00014171]
[1769380358241,0.00790368,86377.0,86365.0,0.00014171]
[1769380358442,0.01157728,86376.0,86365.0,0.00114171]
[1769380358645,0.00790368,86373.0,86365.0,0.00114171]
[1769380358853,0.01157769,86373.0,86365.0,0.00114171]
[1769380359034,0.00790368,86373.0,86365.0,0.00014171]
[1769380359241,0.01158023,86354.0,86346.0,0.0003086]
[1769380359445,0.00938273,86360.0,86336.0,0.01158265]
[1769380359446,0.0115801,86355.0,86339.0,0.13882307]
[1769380359723,0.00823947,86356.0,86339.0,0.1389648]
[1769380359931,0.00823947,86356.0,86341.0,0.13882307]
[1769380360775,0.0115805,86352.0,86339.0,0.00014173]
[1769380360984,0.00823947,86352.0,86339.0,0.00014173]
[1769380361246,0.01158077,86350.0,86339.0,0.00014173]
[1769380361427,0.00823947,86351.0,86339.0,0.00014173]
[1769380361630,0.00823947,86351.0,86341.0,0.002]
[1769380362258,0.00823947,86351.0,86339.0,0.00014173]
[1769380362464,0.0115801,86355.0,86339.0,0.00214173]
[1769380362671,0.01981957,86355.0,86339.0,0.00214173]
[1769380362855,0.01158023,86354.0,86339.0,0.00214173]
[1769380363066,0.01158037,86353.0,86339.0,0.00214173]
[1769380363426,0.1312538,86357.0,86339.0,0.00214173]
[1769380363625,0.0115805,86352.0,86339.0,0.00014173]
[1769380363864,0.01158037,86353.0,86339.0,0.00014173]
[1769380364056,0.0115805,86352.0,86341.0,0.002]
[1769380364458,0.0115805,86352.0,86338.0,0.13882307]
[1769380364459,0.0115805,86352.0,86338.0,0.12686499]